bitfinex/quotes_BTCUSD_20240915
["timestamp","ask_amount","ask_price","bid_price","bid_amount"]
[1726390077431,0.001646,60239.0,60238.0,1.06483754]
[1726390077659,0.001646,60239.0,60238.0,0.73282154]
[1726390078849,0.001646,60239.0,60238.0,0.76610154]
[1726390080978,0.001646,60239.0,60238.0,0.76610388]
[1726390081232,0.001646,60239.0,60238.0,0.71634626]
[1726390082465,0.001646,60239.0,60238.0,0.38433026]
[1726390082932,0.001646,60239.0,60238.0,0.71634626]
[1726390085267,0.001646,60239.0,60238.0,0.76610388]
[1726390089672,0.001646,60239.0,60238.0,1.09811988]
[1726390089899,0.001646,60239.0,60238.0,1.24583692]
[1726390092201,0.001646,60239.0,60238.0,1.17120049]
[1726390093270,0.001646,60239.0,60238.0,1.14766226]
[1726390093476,0.001646,60239.0,60238.0,1.17119395]
[1726390094129,0.001646,60239.0,60238.0,1.27070919]
[1726390094579,0.001646,60239.0,60238.0,1.27071356]
[1726390094817,0.001646,60239.0,60238.0,1.17119832]
[1726390095038,0.001646,60239.0,60238.0,0.80620623]
[1726390095266,0.001646,60239.0,60238.0,0.70660252]
[1726390095489,0.001646,60239.0,60238.0,0.78131727]
[1726390095718,0.001646,60239.0,60238.0,0.78132234]
[1726390095937,0.001646,60239.0,60238.0,0.70660759]
[1726390096155,0.001646,60239.0,60238.0,0.8062113]
[1726390096379,0.001646,60239.0,60238.0,0.8715529]
[1726390096661,0.001646,60239.0,60238.0,0.8062113]
[1726390097110,0.001646,60239.0,60238.0,0.80621425]
[1726390098016,0.001646,60239.0,60238.0,0.80621724]
[1726390098229,0.001646,60239.0,60238.0,0.70661353]
[1726390099008,0.001646,60239.0,60238.0,0.70661302]
[1726390099249,0.001646,60239.0,60238.0,0.83111766]
[1726390099677,0.001646,60239.0,60238.0,0.83122552]
[1726390100988,0.001646,60239.0,60238.0,0.86450442]
[1726390102523,0.001646,60239.0,60238.0,0.73989192]
[1726390103984,0.001646,60239.0,60238.0,1.07190792]
[1726390104732,0.001646,60239.0,60238.0,1.04836226]
[1726390104954,0.001646,60239.0,60238.0,1.07192281]
[1726390106317,0.001646,60239.0,60238.0,1.19654061]
[1726390107225,0.001646,60239.0,60238.0,1.07192281]
[1726390108598,0.001646,60239.0,60238.0,1.07201143]
[1726390110724,0.001646,60239.0,60238.0,1.03873143]
[1726390114801,0.001646,60239.0,60238.0,1.07201143]
[1726390115013,0.001646,60239.0,60238.0,1.40402743]
[1726390115233,0.001646,60239.0,60238.0,1.49422743]
[1726390115869,0.001646,60239.0,60238.0,1.53225842]
[1726390116750,0.001646,60239.0,60238.0,1.98403541]
[1726390116935,0.001646,60239.0,60238.0,1.99803541]
[1726390117625,0.001646,60239.0,60238.0,2.02204882]
[1726390118077,0.001646,60239.0,60238.0,1.98403541]
[1726390118300,0.001646,60239.0,60238.0,1.93184882]
[1726390118515,0.001646,60239.0,60238.0,1.90793764]
[1726390118778,0.001646,60239.0,60238.0,1.89386196]
[1726390119208,0.001646,60239.0,60238.0,1.90786196]
[1726390120766,0.001646,60239.0,60238.0,1.75821088]
[1726390121074,0.001646,60239.0,60238.0,1.90786196]
[1726390121881,0.001646,60239.0,60238.0,1.90787046]
[1726390122496,0.001646,60239.0,60238.0,1.75821938]
[1726390122693,0.001646,60239.0,60238.0,1.90787046]
[1726390122896,0.001646,60239.0,60238.0,1.88411056]
[1726390123250,0.001646,60239.0,60238.0,1.90786265]
[1726390123695,0.001646,60239.0,60238.0,1.90787681]
[1726390123901,0.001646,60239.0,60238.0,1.40413035]
[1726390125593,0.001646,60239.0,60238.0,1.40412873]
[1726390127708,0.02768823,60239.0,60238.0,1.40412873]
[1726390132920,0.02768823,60239.0,60238.0,1.38037826]
[1726390133159,0.02768823,60239.0,60238.0,1.4041267]
[1726390139500,0.02768823,60239.0,60238.0,1.38037826]
[1726390139723,0.02768823,60239.0,60238.0,1.40412969]
[1726390141966,0.001646,60239.0,60238.0,1.40412969]
[1726390144125,0.001646,60239.0,60238.0,1.07211369]
[1726390148370,0.001646,60239.0,60238.0,1.42533657]
[1726390149319,0.001646,60239.0,60238.0,1.40158514]
[1726390149554,0.001646,60239.0,60238.0,1.42533878]
[1726390150759,0.001646,60239.0,60238.0,1.42533372]
[1726390151488,0.001646,60239.0,60238.0,1.42530211]
[1726390152940,0.001646,60239.0,60238.0,1.40155353]
[1726390153204,0.001646,60239.0,60238.0,1.42529897]
[1726390153680,0.001646,60239.0,60238.0,1.57497536]
[1726390154199,0.001646,60239.0,60238.0,1.42529897]
[1726390154624,0.001646,60239.0,60238.0,1.57496493]
[1726390158482,0.001646,60239.0,60238.0,1.56096493]
[1726390158952,0.001646,60239.0,60238.0,1.57496493]
[1726390159193,0.001646,60239.0,60238.0,1.56096493]
[1726390160208,0.001646,60239.0,60238.0,1.57496493]
[1726390161199,0.001646,60239.0,60238.0,1.57472274]
[1726390163530,0.001646,60239.0,60238.0,1.57471952]
[1726390163772,0.001646,60239.0,60238.0,1.42506726]
[1726390164001,0.001646,60239.0,60238.0,1.42506215]
[1726390166170,0.001646,60239.0,60238.0,1.42505406]
[1726390167098,0.001646,60239.0,60238.0,1.40132504]
[1726390167382,0.001646,60239.0,60238.0,1.42504838]
[1726390170445,0.001646,60239.0,60238.0,1.40132504]
[1726390170688,0.001646,60239.0,60238.0,1.42472439]
[1726390171830,0.001646,60239.0,60238.0,1.42471723]
[1726390173193,0.001646,60239.0,60238.0,1.75673323]
[1726390174040,0.001646,60239.0,60238.0,1.7330066]
[1726390174245,0.001646,60239.0,60238.0,1.72873584]
[1726390174652,0.001646,60239.0,60238.0,1.74273584]
[1726390175572,0.001646,60239.0,60238.0,1.75671013]
[1726390177556,0.001646,60239.0,60238.0,1.75671757]
[1726390178025,0.001646,60239.0,60238.0,1.42470157]
[1726390178522,0.001646,60239.0,60238.0,1.75671757]
[1726390179259,0.001646,60239.0,60238.0,1.42470157]
[1726390179728,0.001646,60239.0,60238.0,1.57430038]
[1726390180737,0.001646,60239.0,60238.0,1.56030038]
[1726390181200,0.02768825,60239.0,60238.0,1.54630038]
[1726390181460,0.02768825,60239.0,60238.0,1.56030038]
[1726390181689,0.02768825,60239.0,60238.0,1.61223634]
[1726390182197,0.02768825,60239.0,60238.0,1.59823634]
[1726390183386,0.02768825,60239.0,60238.0,1.61223634]
[1726390185159,0.02768825,60239.0,60238.0,1.61223849]
[1726390186095,0.20198825,60239.0,60238.0,0.63034193]
[1726390186371,0.20198825,60239.0,60238.0,0.18577894]
[1726390186595,0.20198825,60239.0,60238.0,0.45271998]
[1726390187428,0.20198825,60239.0,60238.0,0.35105026]
[1726390189308,0.20198825,60239.0,60238.0,0.28475466]
[1726390190014,0.20198825,60239.0,60238.0,0.1891781]
[1726390190015,0.20657348,60239.0,60238.0,0.1891781]
[1726390190215,0.37257848,60239.0,60238.0,0.25982776]
[1726390190646,0.20657348,60239.0,60238.0,0.25982776]
[1726390191084,0.20657348,60239.0,60238.0,0.24582776]
[1726390191316,0.20657348,60239.0,60238.0,0.25982776]
[1726390191772,0.20657348,60239.0,60238.0,0.24582776]
[1726390192430,0.20657348,60239.0,60238.0,0.17104226]
[1726390192700,0.20657348,60239.0,60238.0,0.15704226]
[1726390192930,0.20657348,60239.0,60238.0,0.17104226]
[1726390193146,0.20657348,60239.0,60238.0,0.18504226]
[1726390193370,0.20657348,60239.0,60238.0,0.17104226]
[1726390194262,0.20657348,60239.0,60238.0,0.18504226]
[1726390194484,0.20657348,60239.0,60238.0,0.22087971]
[1726390194945,0.20657348,60239.0,60238.0,0.23487971]
[1726390195614,0.20657348,60239.0,60238.0,0.22087971]
[1726390195834,0.18053123,60239.0,60238.0,0.22087971]
[1726390196046,0.18053123,60239.0,60238.0,0.23387971]
[1726390198600,0.18053123,60239.0,60238.0,0.18404226]
[1726390203478,0.20657633,60239.0,60238.0,0.18404226]
[1726390209100,0.20657633,60239.0,60238.0,0.35005026]
[1726390220545,0.20657633,60239.0,60238.0,0.39985984]
[1726390223566,0.20657633,60239.0,60238.0,0.36221714]
[1726390223781,0.20657633,60239.0,60238.0,0.39873903]
[1726390224003,0.11117633,60239.0,60238.0,0.73075503]
[1726390225357,0.11117633,60239.0,60238.0,0.68094545]
[1726390226467,0.11117633,60239.0,60238.0,0.75565983]
[1726390229391,0.11117633,60239.0,60238.0,0.68094545]
[1726390229902,0.11117633,60239.0,60238.0,0.78056462]
[1726390231325,0.11117633,60239.0,60238.0,0.68094545]
[1726390232543,0.11117633,60239.0,60238.0,0.80561298]
[1726390234206,0.11117633,60239.0,60238.0,0.82935135]
[1726390234446,0.11117633,60239.0,60238.0,0.80561298]
[1726390234714,0.11117633,60239.0,60238.0,0.82935135]
[1726390235493,0.11117633,60239.0,60238.0,0.80561298]
[1726390236665,0.20437633,60239.0,60238.0,0.80561298]
[1726390239836,0.20408644,60239.0,60238.0,0.80561298]
[1726390244374,0.20408644,60239.0,60238.0,0.47359698]
[1726390250658,0.20408644,60239.0,60238.0,0.47364027]
[1726390255313,0.20408644,60239.0,60238.0,0.47364367]
[1726390259946,0.20408644,60239.0,60238.0,0.30763567]
[1726390260149,0.20408644,60239.0,60238.0,0.47364787]
[1726390263808,0.20408644,60239.0,60238.0,0.4736511]
[1726390265954,0.20408644,60239.0,60238.0,0.18292145]
[1726390266166,0.20408644,60239.0,60238.0,0.28270071]
[1726390273257,0.20408644,60239.0,60238.0,0.28269603]
[1726390273467,0.20408644,60239.0,60238.0,0.18292145]
[1726390283866,0.37009144,60239.0,60238.0,0.18292145]
[1726390284113,0.37009144,60239.0,60238.0,0.25775226]
[1726390286017,0.37009144,60239.0,60238.0,0.25774462]
[1726390287889,0.70210144,60239.0,60238.0,0.25774462]
[1726390289406,0.70210144,60239.0,60238.0,0.18292145]
[1726390289641,0.70210144,60239.0,60238.0,0.23279947]
[1726390292367,0.70210144,60239.0,60238.0,0.23279667]
[1726390294123,0.53000144,60239.0,60238.0,0.23279667]
[1726390295387,0.03198644,60239.0,60238.0,0.23279667]
[1726390296579,0.19799144,60239.0,60238.0,0.23279667]
[1726390297330,0.19799144,60239.0,60238.0,0.23279341]
[1726390298068,0.02740121,60239.0,60238.0,0.49560141]
[1726390298293,0.02740121,60239.0,60238.0,0.35452939]
[1726390304154,0.02740121,60239.0,60238.0,0.25772939]
[1726390306752,0.02740121,60239.0,60238.0,0.25773238]
[1726390307519,0.27250621,60239.0,60238.0,0.25773238]
[1726390307764,0.10650121,60239.0,60238.0,0.25773238]
[1726390308733,0.37069144,60239.0,60238.0,0.25773238]
[1726390309224,0.70270144,60239.0,60238.0,0.25773238]
[1726390311150,1.03471144,60239.0,60238.0,0.25773238]
[1726390311403,1.03471144,60239.0,60238.0,0.23279974]
[1726390311880,1.36672144,60239.0,60238.0,0.06434489]
[1726390312159,1.34067634,60239.0,60238.0,0.06434489]
[1726390312437,1.67268634,60239.0,60238.0,0.06434489]
[1726390312691,1.77268634,60239.0,60238.0,0.027823]
[1726390312952,1.8472901,60239.0,60238.0,0.027823]
[1726390313184,1.8472901,60239.0,60238.0,0.014823]
[1726390313421,1.8472901,60239.0,60238.0,0.005823]
[1726390313663,1.82237073,60239.0,60238.0,0.009823]
[1726390314125,1.82237073,60239.0,60238.0,0.004823]
[1726390314392,1.85237073,60239.0,60238.0,0.004823]
[1726390314621,1.80268634,60239.0,60238.0,0.004823]
[1726390314842,1.80268634,60239.0,60238.0,0.000823]
[1726390315113,1.8287365,60239.0,60238.0,0.000823]
[1726390315368,1.8887365,60239.0,60238.0,0.000823]
[1726390315600,2.05997671,60239.0,60238.0,0.000823]
[1726390316085,2.18405215,60239.0,60238.0,0.000823]
[1726390316341,2.15800199,60239.0,60238.0,0.000823]
[1726390316598,2.13514159,60239.0,60238.0,0.000823]
[1726390317541,2.11030706,60239.0,60238.0,0.000823]
[1726390318044,1.93906685,60239.0,60238.0,0.000823]
[1726390318294,1.86468634,60239.0,60238.0,0.000823]
[1726390318570,1.93904267,60239.0,60238.0,0.000823]
[1726390319570,1.94029527,60239.0,60238.0,0.000823]
[1726390321285,1.89073839,60239.0,60238.0,0.000823]
[1726390321779,1.94028559,60239.0,60238.0,0.000823]
[1726390322286,1.89073839,60239.0,60238.0,0.000823]
[1726390324035,2.40039205,60239.0,60238.0,0.000823]
[1726390324265,2.27229559,60239.0,60238.0,0.000823]
[1726390325969,2.27729559,60239.0,60238.0,0.001823]
[1726390326237,2.25124354,60239.0,60238.0,0.001823]
[1726390326568,2.25124354,60239.0,60238.0,0.000823]
[1726390326569,2.19669634,60239.0,60238.0,0.000823]
[1726390326739,2.20169634,60239.0,60238.0,0.001823]
[1726390326972,2.20569634,60239.0,60238.0,0.002823]
[1726390327233,2.19669634,60239.0,60238.0,0.000823]
[1726390327455,2.20969634,60239.0,60238.0,0.002823]
[1726390328203,2.21869634,60239.0,60238.0,0.003823]
[1726390328437,2.20569634,60239.0,60238.0,0.001823]
[1726390328932,2.19669634,60239.0,60238.0,0.000823]
[1726390329196,2.19669634,60239.0,60238.0,0.001823]
[1726390329197,2.20169634,60239.0,60238.0,0.001823]
[1726390329664,1.86468634,60239.0,60238.0,0.000823]
[1726390330166,1.86968634,60239.0,60238.0,0.001823]
[1726390330655,1.86468634,60239.0,60238.0,0.000823]
[1726390330899,1.89973884,60239.0,60238.0,0.002823]
[1726390331130,1.89573884,60239.0,60238.0,0.001823]
[1726390331360,1.89973884,60239.0,60238.0,0.002823]
[1726390331649,1.89973884,60239.0,60238.0,0.001823]
[1726390332119,1.89473884,60239.0,60238.0,0.000823]
[1726390332359,1.89973884,60239.0,60238.0,0.001823]
[1726390333090,1.89573884,60239.0,60238.0,0.000823]
[1726390333346,1.90073884,60239.0,60238.0,0.002823]
[1726390333578,1.90573884,60239.0,60238.0,0.002823]
[1726390333835,1.87968634,60239.0,60238.0,0.002823]
[1726390338408,1.90573843,60239.0,60238.0,0.002823]
[1726390338687,0.0424082,60239.0,60238.0,0.09839956]
[1726390338926,0.21299843,60239.0,60238.0,0.11628952]
[1726390339137,0.21299843,60239.0,60238.0,0.15551741]
[1726390339627,0.04699343,60239.0,60238.0,0.15551741]
[1726390339887,0.03199343,60239.0,60238.0,0.15351741]
[1726390340143,0.03299343,60239.0,60238.0,0.15451741]
[1726390340659,0.19799843,60239.0,60238.0,0.15451741]
[1726390341165,0.19799843,60239.0,60238.0,0.15551741]
[1726390341844,0.03199343,60239.0,60238.0,0.15551741]
[1726390343813,0.00594134,60239.0,60238.0,0.15551741]
[1726390345068,0.00594134,60239.0,60238.0,0.32152541]
[1726390345476,0.00594134,60239.0,60238.0,0.74394141]
[1726390345724,0.00594134,60239.0,60238.0,0.41192541]
[1726390346106,0.00594134,60239.0,60238.0,0.74394141]
[1726390346925,0.00594134,60239.0,60238.0,0.76694141]
[1726390348623,0.00594134,60239.0,60238.0,1.09895741]
[1726390349663,0.00594134,60239.0,60238.0,0.76694141]
[1726390349875,0.00594134,60239.0,60238.0,1.09895741]
[1726390350939,0.0319864,60239.0,60238.0,1.09895741]
[1726390352493,0.00594134,60239.0,60238.0,1.09895741]
[1726390355661,0.0319862,60239.0,60238.0,1.09895741]
[1726390359840,0.0319862,60239.0,60238.0,0.76694141]
[1726390363880,0.0319862,60239.0,60238.0,0.67654141]
[1726390366534,0.0319862,60239.0,60238.0,0.58096485]
[1726390369511,0.0319862,60239.0,60238.0,0.67654141]
[1726390375950,0.0319862,60239.0,60238.0,0.58096485]
[1726390382245,0.0319862,60239.0,60238.0,0.24894885]
[1726390383340,0.0319862,60239.0,60238.0,0.17851741]
[1726390383607,0.0319862,60239.0,60238.0,0.34452541]
[1726390384035,0.0319862,60239.0,60238.0,0.17851741]
[1726390387830,0.0319862,60239.0,60238.0,0.17751741]
[1726390388066,0.0319862,60239.0,60238.0,0.17651741]
[1726390388575,0.0319862,60239.0,60238.0,0.18051741]
[1726390388847,0.0319862,60239.0,60238.0,0.17751741]
[1726390389100,0.0319862,60239.0,60238.0,0.18351741]
[1726390390050,0.1979912,60239.0,60238.0,0.18351741]
[1726390390280,0.1979912,60239.0,60238.0,0.18251741]
[1726390390535,0.1979912,60239.0,60238.0,0.18751741]
[1726390391981,0.5300012,60239.0,60238.0,0.18751741]
[1726390392757,0.1979912,60239.0,60238.0,0.18751741]
[1726390394594,0.1979912,60239.0,60238.0,0.18251741]
[1726390394824,0.1979912,60239.0,60238.0,0.17651741]
[1726390395053,0.1979912,60239.0,60238.0,0.18251741]
[1726390395500,0.5300012,60239.0,60238.0,0.17951741]
[1726390395723,0.5300012,60239.0,60238.0,0.18251741]
[1726390398415,1.0371112,60239.0,60238.0,0.04605089]
[1726390398857,1.0371112,60239.0,60238.0,0.006823]
[1726390399507,1.0371112,60239.0,60238.0,0.04632567]
[1726390399726,1.0371112,60239.0,60238.0,0.006823]
[1726390399943,1.0371112,60239.0,60238.0,0.04632567]
[1726390400177,1.0371112,60239.0,60238.0,0.006823]
[1726390400424,1.0371112,60239.0,60238.0,0.04632567]
[1726390400638,1.0371112,60239.0,60238.0,0.006823]
[1726390400853,1.0371112,60239.0,60238.0,0.04632567]
[1726390401071,1.0371112,60239.0,60238.0,0.006823]
[1726390401290,1.0371112,60239.0,60238.0,0.04632567]
[1726390401511,1.0371112,60239.0,60238.0,0.006823]
[1726390401726,1.0371112,60239.0,60238.0,0.04632567]
[1726390401936,1.0371112,60239.0,60238.0,0.006823]
[1726390402172,1.0371112,60239.0,60238.0,0.04632567]
[1726390402386,1.0371112,60239.0,60238.0,0.006823]
[1726390402607,1.0371112,60239.0,60238.0,0.04632567]
[1726390402788,1.0371112,60239.0,60238.0,0.006823]
[1726390403040,1.0371112,60239.0,60238.0,0.04632567]
[1726390403275,1.0371112,60239.0,60238.0,0.006823]
[1726390403505,1.0371112,60239.0,60238.0,0.04632567]
[1726390403724,1.0371112,60239.0,60238.0,0.006823]
[1726390404410,1.34307634,60239.0,60238.0,0.006823]
[1726390404627,1.39288939,60239.0,60238.0,0.006823]
[1726390404866,1.77508634,60239.0,60238.0,0.006823]
[1726390405103,1.98961898,60239.0,60238.0,0.006823]
[1726390405348,1.98946834,60239.0,60238.0,0.006823]
[1726390405594,1.86508634,60239.0,60238.0,0.003823]
[1726390405821,2.03632655,60239.0,60238.0,0.004823]
[1726390406040,2.03632655,60239.0,60238.0,0.003823]
[1726390406041,2.03832655,60239.0,60238.0,0.003823]
[1726390406254,2.19909634,60239.0,60238.0,0.003823]
[1726390406472,2.20309634,60239.0,60238.0,0.004823]
[1726390406683,2.20309634,60239.0,60238.0,0.003823]
[1726390406929,2.20709634,60239.0,60238.0,0.001823]
[1726390407156,2.37833655,60239.0,60238.0,0.001823]
[1726390407616,2.37833655,60239.0,60238.0,0.002823]
[1726390407853,2.4043889,60239.0,60238.0,0.002823]
[1726390408076,2.4043889,60239.0,60238.0,0.001823]
[1726390408331,2.5325654,60239.0,60238.0,0.002823]
[1726390409453,2.4083889,60239.0,60238.0,0.002823]
[1726390410317,2.50766939,60239.0,60238.0,0.002823]
[1726390411425,2.4083889,60239.0,60238.0,0.002823]
[1726390412315,2.48281423,60239.0,60238.0,0.002823]
[1726390412526,2.48281242,60239.0,60238.0,0.002823]
[1726390413018,2.28551986,60239.0,60238.0,0.002823]
[1726390413223,1.95150986,60239.0,60238.0,0.002823]
[1726390413674,1.95350986,60239.0,60238.0,0.002823]
[1726390415333,1.87908634,60239.0,60238.0,0.002823]
[1726390416336,1.9547286,60239.0,60238.0,0.002823]
[1726390417434,1.92867589,60239.0,60238.0,0.002823]
[1726390417889,1.91667589,60239.0,60238.0,0.000823]
[1726390418153,1.92767589,60239.0,60238.0,0.001823]
[1726390418396,1.87808634,60239.0,60238.0,0.000823]
[1726390418608,1.88708634,60239.0,60238.0,0.001823]
[1726390419471,1.86908634,60239.0,60238.0,0.001823]
[1726390419717,1.86908634,60239.0,60238.0,0.002823]
[1726390419916,1.87608634,60239.0,60238.0,0.001823]
[1726390420151,1.88008634,60239.0,60238.0,0.002823]
[1726390420376,1.90613866,60239.0,60238.0,0.002823]
[1726390420629,1.90613866,60239.0,60238.0,0.001823]
[1726390420630,1.90213866,60239.0,60238.0,0.001823]
[1726390421043,1.89713866,60239.0,60238.0,0.001823]
[1726390421964,1.90813866,60239.0,60238.0,0.002823]
[1726390422310,1.90813866,60239.0,60238.0,0.000823]
[1726390422311,1.90413866,60239.0,60238.0,0.000823]
[1726390422495,1.91513866,60239.0,60238.0,0.001823]
[1726390422702,1.90813866,60239.0,60238.0,0.001823]
[1726390422906,1.88008634,60239.0,60238.0,0.001823]
[1726390423131,1.88708634,60239.0,60238.0,0.001823]
[1726390423488,1.89108634,60239.0,60238.0,0.002823]
[1726390424311,1.87108634,60239.0,60238.0,0.001823]
[1726390424524,1.87108634,60239.0,60238.0,0.002823]
[1726390424740,1.87908634,60239.0,60238.0,0.002823]
[1726390426216,1.90513817,60239.0,60238.0,0.002823]
[1726390427474,1.87908634,60239.0,60238.0,0.002823]
[1726390430285,1.90513793,60239.0,60238.0,0.002823]
[1726390432528,1.87908634,60239.0,60238.0,0.002823]
[1726390435728,1.90513801,60239.0,60238.0,0.002823]
[1726390436858,1.87908634,60239.0,60238.0,0.002823]
[1726390439755,1.90513793,60239.0,60238.0,0.002823]
[1726390442619,1.57312793,60239.0,60238.0,0.002823]
[1726390443720,1.54707634,60239.0,60238.0,0.002823]
[1726390446943,1.57312778,60239.0,60238.0,0.002823]
[1726390447155,1.62277185,60239.0,60238.0,0.002823]
[1726390448227,1.64759388,60239.0,60238.0,0.002823]
[1726390449311,1.67241592,60239.0,60238.0,0.002823]
[1726390450186,1.57312778,60239.0,60238.0,0.002823]
[1726390453008,1.54707634,60239.0,60238.0,0.002823]
[1726390456307,1.57312909,60239.0,60238.0,0.002823]
[1726390457496,1.54707634,60239.0,60238.0,0.002823]
[1726390460451,1.57312753,60239.0,60238.0,0.002823]
[1726390463082,1.54707634,60239.0,60238.0,0.002823]
[1726390465191,1.28197634,60239.0,60238.0,0.002823]
[1726390465411,1.31197634,60239.0,60238.0,0.02994296]
[1726390465839,1.41149144,60239.0,60238.0,0.02994296]
[1726390466048,1.41149144,60239.0,60238.0,0.002823]
[1726390466529,1.43754195,60239.0,60238.0,0.002823]
[1726390467643,1.41149144,60239.0,60238.0,0.002823]
[1726390468065,1.31197634,60239.0,60238.0,0.002823]
[1726390468682,1.51396586,60239.0,60238.0,0.002823]
[1726390468853,1.38957634,60239.0,60238.0,0.002823]
[1726390470484,1.41562724,60239.0,60238.0,0.002823]
[1726390472422,1.53997393,60239.0,60238.0,0.002823]
[1726390472869,1.41562724,60239.0,60238.0,0.002823]
[1726390473081,1.38957634,60239.0,60238.0,0.002823]
[1726390474143,1.38957634,60239.0,60238.0,0.00207454]
[1726390476425,1.41562724,60239.0,60238.0,0.00207454]
[1726390477683,1.38957634,60239.0,60238.0,0.00207454]
[1726390480518,1.41562724,60239.0,60238.0,0.00207454]
[1726390483123,1.38957634,60239.0,60238.0,0.00207454]
[1726390485232,1.39157634,60239.0,60238.0,0.00207454]
[1726390485452,1.38957634,60239.0,60238.0,0.00207454]
[1726390486562,1.41562724,60239.0,60238.0,0.00207454]
[1726390493062,1.38957634,60239.0,60238.0,0.00207454]
[1726390495716,1.39157634,60239.0,60238.0,0.00207454]
[1726390495952,1.38957634,60239.0,60238.0,0.00207454]
[1726390496433,1.41562724,60239.0,60238.0,0.00207454]
[1726390502196,1.46245053,60239.0,60238.0,0.00207454]
[1726390502607,1.33802724,60239.0,60238.0,0.00207454]
[1726390502810,1.31197634,60239.0,60238.0,0.09857454]
[1726390503016,1.28197634,60239.0,60238.0,0.09857454]
[1726390503221,1.31197634,60239.0,60238.0,0.09857454]
[1726390505803,1.33802684,60239.0,60238.0,0.09857454]
[1726390507287,1.31197634,60239.0,60238.0,0.09857454]
[1726390507989,1.31197634,60239.0,60238.0,0.00207454]
[1726390508199,1.39177634,60239.0,60238.0,0.00207454]
[1726390508635,1.51619483,60239.0,60238.0,0.00207454]
[1726390508848,1.39177634,60239.0,60238.0,0.00207454]
[1726390510015,1.41782723,60239.0,60238.0,0.00207454]
[1726390513081,1.39177634,60239.0,60238.0,0.00207454]
[1726390514540,1.36177634,60239.0,60238.0,0.00207454]
[1726390514782,1.39177634,60239.0,60238.0,0.00207454]
[1726390516480,1.41782721,60239.0,60238.0,0.00207454]
[1726390519798,1.38782721,60239.0,60238.0,0.00207454]
[1726390520022,1.41782721,60239.0,60238.0,0.00207454]
[1726390522820,1.39177634,60239.0,60238.0,0.00207454]
[1726390525714,1.41782725,60239.0,60238.0,0.00207454]
[1726390526978,1.39177634,60239.0,60238.0,0.00207454]
[1726390528885,1.9732629,60239.0,60238.0,0.00207454]
[1726390529960,1.99931442,60239.0,60238.0,0.00207454]
[1726390532803,1.90373786,60239.0,60238.0,0.00207454]
[1726390533257,1.87768634,60239.0,60238.0,0.00207454]
[1726390536390,1.42177634,60239.0,60238.0,0.00207454]
[1726390536624,1.47782765,60239.0,60238.0,0.00207454]
[1726390538548,1.57632765,60239.0,60238.0,0.00207454]
[1726390540569,1.57832765,60239.0,60238.0,0.00207454]
[1726390541432,1.57632765,60239.0,60238.0,0.00207454]
[1726390542463,1.57832765,60239.0,60238.0,0.00207454]
[1726390543500,1.57632765,60239.0,60238.0,0.00207454]
[1726390543698,1.47782765,60239.0,60238.0,0.00207454]
[1726390555576,1.44782765,60239.0,60238.0,0.00207454]
[1726390555798,1.46250118,60239.0,60238.0,0.00207454]
[1726390556443,1.43250118,60239.0,60238.0,0.00207454]
[1726390557253,1.46250118,60239.0,60238.0,0.09687454]
[1726390557958,1.46248888,60239.0,60238.0,0.09687454]
[1726390561222,1.33802765,60239.0,60238.0,0.00207454]
[1726390561495,1.46249584,60239.0,60238.0,0.00207454]
[1726390566154,1.46248991,60239.0,60238.0,0.00207454]
[1726390571113,1.46248259,60239.0,60238.0,0.00207454]
[1726390575949,1.46250103,60239.0,60238.0,0.00207454]
[1726390580566,1.46250776,60239.0,60238.0,0.00207454]
[1726390584617,1.51352765,60239.0,60238.0,0.00207454]
[1726390590186,1.41902765,60239.0,60238.0,0.00207454]
[1726390597791,1.54353459,60239.0,60238.0,0.00207454]
[1726390597990,1.46253459,60239.0,60238.0,0.00207454]
[1726390598201,1.40763781,60239.0,60238.0,0.00207454]
[1726390598345,1.43763781,60239.0,60238.0,0.00207454]
[1726390599206,1.33802765,60239.0,60238.0,0.00207454]
[1726390604766,1.46252997,60239.0,60238.0,0.00207454]
[1726390605236,1.46253321,60239.0,60238.0,0.00207454]
[1726390608001,1.46253321,60239.0,60238.0,0.00190397]
[1726390609348,1.33802765,60239.0,60238.0,0.00190397]
[1726390610027,1.46252926,60239.0,60238.0,0.00190397]
[1726390610457,1.33802765,60239.0,60238.0,0.00190397]
[1726390611424,1.46253058,60239.0,60238.0,0.00190397]
[1726390611911,1.41462765,60239.0,60238.0,0.00190397]
[1726390616248,1.41462765,60239.0,60238.0,0.00272697]
[1726390643151,1.53912212,60239.0,60238.0,0.00272697]
[1726390643368,1.41462765,60239.0,60238.0,0.00272697]
[1726390643573,1.53912075,60239.0,60238.0,0.00272697]
[1726390643810,1.41462765,60239.0,60238.0,0.00272697]
[1726390656794,1.66310421,60239.0,60238.0,0.00272697]
[1726390657059,1.99511421,60239.0,60238.0,0.00272697]
[1726390658119,1.98511421,60239.0,60238.0,0.00172697]
[1726390658334,2.13449475,60239.0,60238.0,0.00172697]
[1726390658542,2.14247677,60239.0,60238.0,0.001823]
[1726390658754,2.00511421,60239.0,60238.0,0.002823]
[1726390658967,2.14447641,60239.0,60238.0,0.001823]
[1726390659426,2.13247813,60239.0,60238.0,0.000823]
[1726390659676,2.15647813,60239.0,60238.0,0.002823]
[1726390660170,1.9810629,60239.0,60238.0,0.002823]
[1726390660620,2.13039321,60239.0,60238.0,0.002823]
[1726390660851,2.13039682,60239.0,60238.0,0.002823]
[1726390661078,2.12839682,60239.0,60238.0,0.002823]
[1726390661975,1.9790629,60239.0,60238.0,0.002823]
[1726390662700,1.9810629,60239.0,60238.0,0.002823]
[1726390662925,2.00711473,60239.0,60238.0,0.002823]
[1726390663822,1.9810629,60239.0,60238.0,0.002823]
[1726390666321,2.30159762,60239.0,60238.0,0.002823]
[1726390666553,2.15230311,60239.0,60238.0,0.002823]
[1726390666768,2.13035741,60239.0,60238.0,0.002823]
[1726390666972,2.15640924,60239.0,60238.0,0.002823]
[1726390667189,2.00711473,60239.0,60238.0,0.002823]
[1726390668303,2.00511473,60239.0,60238.0,0.002823]
[1726390680379,1.90953817,60239.0,60238.0,0.002823]
[1726390684970,1.91153817,60239.0,60238.0,0.002823]
[1726390685470,2.00711473,60239.0,60238.0,0.002823]
[1726390685890,2.07016174,60239.0,60238.0,0.002823]
[1726390686373,2.00711473,60239.0,60238.0,0.002823]
[1726390686802,2.00511473,60239.0,60238.0,0.002823]
[1726390688370,2.00711473,60239.0,60238.0,0.002823]
[1726390695449,2.15640924,60239.0,60238.0,0.002823]
[1726390697982,2.15645179,60239.0,60238.0,0.002823]
[1726390700788,2.15445179,60239.0,60238.0,0.002823]
[1726390701194,2.15645179,60239.0,60238.0,0.002823]
[1726390701401,2.00511473,60239.0,60238.0,0.002823]
[1726390702958,1.90953817,60239.0,60238.0,0.002823]